[Event "GER-ch Youth-ODJM 2022"]
[Site "Willingen"]
[Date "2022.06.06"]
[Round "3.12"]
[White "Kotyk, Michael"]
[Black "Herter, Arne"]
[Result "0-1"]
[ECO "E70"]
[WhiteElo "2170"]
[BlackElo "1943"]
[Annotator "TA"]
[PlyCount "60"]
[EventDate "2022.06.05"]
[EventType "swiss"]
[EventRounds "9"]
[EventCountry "GER"]
[SourceTitle "playchess.com"]
[Source "ChessBase"]
[SourceQuality "1"]
[TimeControl "40/4500+30:900+30"]

{[%evp 13,60,31,51,32,38,41,50,50,41,13,0,11,46,65,80,67,57,68,110,115,120,54,64,48,61,29,16,31,54,66,158,-553,-513,-902,-904,-1143,-1147,-1046,-1031,-29993,-29994,-29996,-29990,-508,-29991,-29991,-29992,-29992,-29992]} 1. d4 {[%emt 0:00:00]} Nf6 {[%emt 0:00:00]} 2. c4 {[%emt 0:00:00]} g6 {[%emt 0:00:00]} 3. Nc3 {[%emt 0:00:00]} Bg7 {[%emt 0:00:00]} 4. e4 {[%emt 0:00:00]} d6 {[%emt 0:00:00]} 5. Be3 {[%emt 0:00:00]} O-O {[%emt 0:00:00]} 6. h3 {[%emt 0:00:00]} e5 {[%emt 0:00:00]} 7. d5 {[%emt 0:00:00]} Na6 {[%emt 0:00:00]} 8. g4 {[%emt 0:00:00] E71: King's Indian: 4 e4 d6 5 h3.} Nc5 {[%emt 0:00:00]} 9. f3 {[%emt 0:00:00]} a5 {[%emt 0:00:00][%cal Ba7a5,Ba5a4,Ba4a3][%mdl 32]} 10. Nge2 {[%emt 0:00:00] White is slightly better.} c6 {[%emt 0:00:00]} 11. h4 {[%emt 0:00:00]} cxd5 {[%emt 0:00:00]} 12. cxd5 {[%emt 0:00:00]} Bd7 {[%emt 0:00:00]} (12... h5 $5 {[%cal Rh5g4]}) 13. Ng3 {[%emt 0:00:00]} a4 {[%emt 0:00:00]} 14. Qd2 {[%emt 0:00:00]} Qa5 {[%emt 0:00:00]} 15. h5 {[%emt 0:00:00]} Rfc8 {[%emt 0:00:00]} 16. hxg6 $1 {[%emt 0:04:52]} fxg6 {[%emt 0:00:00]} 17. g5 {[%emt 0:16:38]} Ne8 {[%emt 0:00:00]} 18. Qh2 {[%emt 0:03:52]} a3 $1 {[%emt 0:03:22]} 19. Qxh7+ {[%emt 0:00:15]} Kf7 $1 {[%emt 0:00:10]} (19... Kf8 20. b4 Qxb4 21. Bd2 $16 (21. Rc1 $2 Nb3 $19)) 20. b4 {[%emt 0:02:21]} (20. Rh6 $2 axb2 21. Qxg6+ Ke7 $19) 20... Qxb4 {[%emt 0:03:06]} 21. Bd2 {[%emt 0:00:12] Rh6 is the strong threat.} ({But not} 21. Rc1 $2 Nb3 $1 {[%mdl 512]} 22. Nf5 (22. axb3 $2 Rxc3 23. Rxc3 Qxc3+ 24. Kf2 a2 $19) 22... Nxc1 23. Nxg7 Nxg7 $19) 21... Qd4 {[%emt 0:20:37] [#]} (21... Qb2 $14 22. Rb1 Na4 23. Rxb2 axb2) 22. Rh6 $2 {[%emt 0:12:01] [#] White does not recover from this.} (22. Rd1 $1 $16 {stays on course.}) 22... Qg1 $146 {[%emt 0:06:49]} ({Predecessor:} 22... Nd3+ 23. Bxd3 Qxd3 24. Qxg6+ Ke7 25. Rh7 Qxf3 26. Rxg7+ Nxg7 27. Qxg7+ Ke8 28. Nce2 Ra4 29. g6 Rc2 30. Qh8+ {1-0 (30) Barski,R (2444)-Adamczewski,M (2045) Wroclaw 2020}) 23. Qxg6+ {[%emt 0:05:10]} (23. Rb1 $142 Nd3+ 24. Kd1 Nb2+ 25. Ke2 Rxc3 26. Bxc3) 23... Kf8 {[%emt 0:12:25]} 24. Nf5 {[%emt 0:05:19]} Nd3+ $1 {[%emt 0:05:04]} 25. Ke2 {[%emt 0:00:41]} Rxc3 {[%emt 0:04:03]} 26. Be3 {[%emt 0:10:00] Against Qf2+} Nf4+ {[%emt 0:03:32]} 27. Bxf4 {[%emt 0:00:07]} exf4 {[%emt 0:00:09]} 28. Qxg7+ {[%emt 0:04:19]} Nxg7 {[%emt 0:00:28]} 29. Rh8+ {[%emt 0:00:02]} Kf7 {[%emt 0:00:21]} 30. Nxd6+ {[%emt 0:00:03]} Ke7 {[%emt 0:00:43] Weighted Error Value: White=0.69/Black=0.09 (flawless)} 0-1

[Event "GER-ch Youth-ODJM 2022"]
[Site "Willingen"]
[Date "2022.06.06"]
[Round "3.13"]
[White "Gallasch, Robin"]
[Black "Sabirov, Ramil"]
[Result "1/2-1/2"]
[ECO "A04"]
[WhiteElo "2063"]
[BlackElo "2130"]
[Annotator "TA"]
[PlyCount "96"]
[EventDate "2022.06.05"]
[EventType "swiss"]
[EventRounds "9"]
[EventCountry "GER"]
[SourceTitle "playchess.com"]
[Source "ChessBase"]
[SourceQuality "1"]
[TimeControl "40/4500+30:900+30"]

{[%evp 13,96,10,13,0,10,8,6,8,10,6,12,-13,4,-24,-29,-33,-13,-16,0,0,-9,-53,-53,-53,-50,-54,-45,-43,-47,-60,-54,-79,-91,-84,-87,-157,-85,-66,-63,-255,-72,-78,-65,-70,-10,-85,-90,-87,-94,-88,-75,-83,-42,-49,0,-83,0,-47,-32,-47,-45,-46,-8,-7,0,-37,-22,-77,-36,-27,0,-40,-8,-50,0,-35,0,-50,-32,-28,-42,-31,0,-7,0]} 1. Nf3 {[%emt 0:00:00]} c5 {[%emt 0:00:00]} 2. b3 {[%emt 0:00:00]} Nc6 {[%emt 0:00:00]} 3. Bb2 {[%emt 0:00:00]} d5 {[%emt 0:00:00]} 4. e3 {[%emt 0:00:00]} Nf6 {[%emt 0:00:00]} 5. Bb5 {[%emt 0:00:00]} Bd7 {[%emt 0:00:00]} 6. O-O {[%emt 0:00:00]} e6 {[%emt 0:00:36]} 7. d3 {[%emt 0:00:00]} Be7 {[%emt 0:05:49]} 8. Nbd2 {[%emt 0:00:00] A06: Réti Opening: 1 Nf3 d5.} a6 {[%emt 0:00:52]} 9. Bxc6 {[%emt 0:00:00]} Bxc6 {[%emt 0:00:03]} 10. Ne5 {[%emt 0:00:00]} Rc8 {[%emt 0:02:23]} 11. Qe2 {[%emt 0:00:00]} O-O {[%emt 0:00:25]} 12. f4 {[%emt 0:00:00]} Nd7 {[%emt 0:08:33]} 13. Qg4 {[%emt 0:01:55] [#]} Nxe5 $146 {[%emt 0:12:38]} ({Predecessor:} 13... f5 14. Qh3 Nxe5 15. Bxe5 Bf6 16. Nf3 Qe7 17. Bxf6 Qxf6 18. Ne5 d4 19. Rae1 Rfe8 {1-0 (47) Fryc,M (2135)-Novak,J (2127) Brno 2001}) 14. Bxe5 {[%emt 0:03:10][%csl Ge5][%cal Rg4g7] [#]} Bf6 {[%emt 0:03:00]} 15. Rf3 {[%emt 0:04:53]} g6 {[%emt 0:14:22]} 16. Rh3 {[%emt 0:05:08]} Bg7 {[%emt 0:07:42]} 17. Nf3 {[%emt 0:16:39]} f6 {[%emt 0:08:19] Inhibits Ng5.} 18. Qxe6+ {[%emt 0:22:24]} Rf7 $1 {[%emt 0:02:03] [#] ...Bd7 is the strong threat.} 19. Rxh7 $1 {[%emt 0:11:26]} Kxh7 {[%emt 0:04:52][%cal Bg8h7,Bh7h6,Bh6h5,Bh5h4,Bh4g4,Bg4f5,Bf5f6][%mdl 32]} 20. Qxf7 {[%emt 0:00:07][%cal Of3g5] Threatens to win with Ng5+!} fxe5 {[%emt 0:06:25]} 21. Ng5+ {[%emt 0:00:10]} ({Reject} 21. Nxe5 Qd6 22. Nf3 Re8 23. Ng5+ Kh8 $17) ({Don't play} 21. fxe5 Rc7 22. Ng5+ Qxg5 $17) 21... Kh6 {[%emt 0:00:30] aiming for ...exf4.} 22. Qe6 {[%emt 0:00:46][%cal Re6h3]} Qd7 {[%emt 0:00:24] White must now prevent ...exf4.} 23. Nf7+ {[%emt 0:10:06]} Kh5 {[%emt 0:00:36]} 24. g4+ {[%emt 0:00:34]} Kh4 {[%emt 0:00:04]} 25. Qxg6 {[%emt 0:00:53][%csl Gg4][%cal Rg6h5]} Qxg4+ {[%emt 0:00:04]} 26. Qxg4+ {[%emt 0:00:05]} Kxg4 {[%emt 0:00:03]} 27. Kf2 {[%emt 0:00:40] Hoping for Rg1+.} Rc7 {[%emt 0:04:52]} 28. Rg1+ {[%emt 0:04:05]} Kf5 $1 {[%emt 0:00:07]} 29. Nxe5 {[%emt 0:00:18]} (29. Rxg7 $11 {keeps the balance.} Kf6 30. Rh7 Rxf7 31. fxe5+ Kg6+ 32. Rxf7 Kxf7 33. Kf3) 29... Bxe5 $17 {[%emt 0:00:47]} 30. Rg5+ {[%emt 0:00:05]} Kf6 {[%emt 0:00:03]} 31. Rxe5 {[%emt 0:00:05][%mdl 4096] Endgame KRB-KR} Rh7 {[%emt 0:00:28]} 32. Kg3 {[%emt 0:00:39]} Rg7+ {[%emt 0:00:21]} 33. Kf2 $1 {[%emt 0:00:26]} Rh7 {[%emt 0:01:25]} 34. Kg3 {[%emt 0:00:07]} Rg7+ {[%emt 0:00:06]} 35. Kf2 $1 {[%emt 0:00:05]} Rg4 {[%emt 0:01:06]} 36. h3 {[%emt 0:02:10]} Rg7 {[%emt 0:01:12]} 37. Rh5 {[%emt 0:00:45]} Kg6 {[%emt 0:01:30]} 38. Rg5+ {[%emt 0:02:08]} Kf6 {[%emt 0:00:05]} 39. Rh5 {[%emt 0:00:06]} Rg8 {[%emt 0:01:07]} 40. Kf1 {[%emt 0:01:12]} (40. Rh6+ $11 Rg6 41. Rh5) 40... Rg3 {[%emt 0:01:02]} (40... c4 $5) 41. Kf2 {[%emt 0:15:06]} Rg8 {[%emt 0:15:20]} 42. Rh6+ {[%emt 0:00:00]} Rg6 {[%emt 0:00:00]} 43. Rh7 {[%emt 0:00:00]} Rg7 {[%emt 0:00:00]} (43... a5 $15) 44. Rh6+ {[%emt 0:00:00]} Ke7 {[%emt 0:00:00]} 45. Rh5 {[%emt 0:00:00]} ({White should try} 45. h4 $11) 45... Kf7 {[%emt 0:00:00]} 46. Rf5+ {[%emt 0:00:00]} Ke6 {[%emt 0:00:00]} 47. Rh5 {[%emt 0:00:00]} Kf7 {[%emt 0:00:00]} 48. Rf5+ {[%emt 0:00:00]} Ke6 {[%emt 0:00:00] Weighted Error Value: White=0.15 (very precise) /Black=0.15 (very precise)} 1/2-1/2

[Event "GER-ch Youth-ODJM 2022"]
[Site "Willingen"]
[Date "2022.06.06"]
[Round "3.14"]
[White "Paeslack, Luis"]
[Black "Garbuz, Vitaliy"]
[Result "1/2-1/2"]
[ECO "D31"]
[WhiteElo "1889"]
[BlackElo "2134"]
[Annotator "TA"]
[PlyCount "54"]
[EventDate "2022.06.05"]
[EventType "swiss"]
[EventRounds "9"]
[EventCountry "GER"]
[SourceTitle "playchess.com"]
[Source "ChessBase"]
[SourceQuality "1"]
[TimeControl "40/4500+30:900+30"]

{[%evp 12,54,35,42,68,47,84,60,77,77,84,77,266,45,292,293,338,297,256,97,110,29,39,41,70,0,0,0,0,-424,-74,-305,0,0,0,0,0,0,0,0,0,0,0,0,0]} 1. d4 {[%emt 0:00:00]} d5 {[%emt 0:00:00]} 2. c4 {[%emt 0:00:00]} c6 {[%emt 0:00:00]} 3. Nc3 {[%emt 0:00:00]} e6 {[%emt 0:00:00]} 4. e4 {[%emt 0:00:00]} dxe4 {[%emt 0:00:00]} 5. Nxe4 {[%emt 0:00:00]} Nf6 {[%emt 0:00:00]} 6. Nxf6+ {[%emt 0:00:00]} Qxf6 {[%emt 0:00:00]} 7. Nf3 {[%emt 0:00:00]} h6 {[%emt 0:00:00] D31: Queen's Gambit Declined: Semi-Slav without ...Nf6 (+ Marshall Gambit and Noteboom) and Exchange Variation lines without ...Nf6.} 8. Bd3 {[%emt 0:04:57]} Bd6 {[%emt 0:00:00]} 9. O-O {[%emt 0:06:14]} Nd7 {[%emt 0:00:00] White is slightly better.} 10. Bd2 {[%emt 0:11:05] [#]} b6 $146 {[%emt 0:00:00]} ({Predecessor:} 10... O-O 11. Bc3 Qe7 12. Qd2 Rb8 13. Rfe1 b5 14. c5 Bc7 15. Be4 Bb7 16. a4 a6 17. axb5 axb5 {½-½ (42) Kratochvil,K (2231)-Hlavacek,R (2211) Czech Republic 2013}) 11. Bc3 {[%emt 0:07:04] Threatens to win with Be4.} Bb7 $2 {[%emt 0:00:00]} (11... Qe7 $16) 12. Qc2 $2 {[%emt 0:11:40]} (12. c5 $1 $18 {[%cal Rc5d6]}) 12... O-O-O $2 {[%emt 0:00:42]} (12... Qe7 $14) 13. c5 $18 {[%emt 0:11:26]} Bb8 {[%emt 0:03:09]} 14. b4 {[%emt 0:09:29]} Qf4 {[%emt 0:04:36]} 15. b5 $2 {[%emt 0:06:28]} (15. Rfc1 $18) 15... cxb5 $16 {[%emt 0:05:02]} 16. cxb6 {[%emt 0:04:18]} (16. c6 $16 Bxc6 17. Bd2) 16... Nxb6 $11 {[%emt 0:01:18]} 17. Ne5 {[%emt 0:04:10] aiming for Bd2+.} Nc4 {[%emt 0:01:18][%cal Rb8e5] Inhibits Bd2.} 18. Bxc4 {[%emt 0:02:44]} (18. g3 $6 Qf6 19. f4 Bxe5 20. fxe5 Qe7 $11) ({White should play} 18. Rfe1 $1 $14 Bxe5 19. Rxe5) 18... bxc4 {[%emt 0:00:54]} 19. Bd2 $1 {[%emt 0:01:10]} Qxd4 {[%emt 0:05:42]} 20. Nxf7 {[%emt 0:00:09][%mdl 8192]} (20. Nxc4 $11 {and White is okay.} Bc7 21. Rfc1) 20... Qd5 $2 {[%emt 0:03:22]} ({Wrong is} 20... Qxd2 $2 21. Qxc4+ Bc7 22. Rfc1 $19) (20... Bxg2 $1 $19 {has better winning chances.} 21. Rfc1 (21. Kxg2 $2 Qg4+ 22. Kh1 Qf3+ 23. Kg1 Rd4 $19) 21... Bd5 $1) 21. f3 $2 {[%emt 0:00:46]} (21. Qg6 $17 {was forced.} Qxd2 22. Qxe6+ Qd7 23. Qxc4+ Bc7 24. Rab1) 21... Qh5 $2 {[%emt 0:19:56]} ({Not} 21... Qxd2 $2 22. Qxc4+ Bc7 23. Qxe6+ Kb8 24. Nxh8 Rxh8 25. Rad1 $19) ({Better is} 21... Qc5+ $19 22. Rf2 {[#]} Rxd2 $1 {[%mdl 512]} 23. Qxd2 Rf8) 22. Qxc4+ {[%emt 0:00:18] The position is equal.} Bc7 $1 {[%emt 0:00:05] A strong pair of Bishops.} 23. Nxd8 {[%emt 0:01:16][%cal Od2f4] The board is on fire.} Qxh2+ {[%emt 0:02:27]} 24. Kf2 {[%emt 0:00:03]} Rxd8 {[%emt 0:01:52]} 25. Ba5 {[%emt 0:01:34] Hoping for Rfc1.} Qg3+ {[%emt 0:02:51]} 26. Kg1 {[%emt 0:00:17]} Qh2+ {[%emt 0:00:33]} 27. Kf2 {[%emt 0:00:04] And now Rfc1 would win.} Qg3+ {[%emt 0:00:03] Weighted Error Value: White=0.81/Black=0.90} 1/2-1/2

[Event "GER-ch Youth-ODJM 2022"]
[Site "Willingen"]
[Date "2022.06.06"]
[Round "3.15"]
[White "Savchenko, Daniel"]
[Black "Brockmeyer, Tobias"]
[Result "0-1"]
[ECO "C07"]
[WhiteElo "2134"]
[BlackElo "1936"]
[Annotator "TA"]
[PlyCount "83"]
[EventDate "2022.06.05"]
[EventType "swiss"]
[EventRounds "9"]
[EventCountry "GER"]
[SourceTitle "playchess.com"]
[Source "ChessBase"]
[SourceQuality "1"]
[TimeControl "40/4500+30:900+30"]

{[%evp 10,83,15,15,29,14,28,38,35,37,31,37,14,0,0,-12,0,-7,0,-6,-15,-16,-8,-14,0,-4,0,-9,-8,-13,-25,-18,-22,-21,0,0,0,0,0,-79,-70,-94,-94,-92,-55,-88,0,-292,-45,-46,-46,-799,-799,-799,-799,-799,-794,-29996,-765,-707,0,-731,-440,-432,-432,-445,-445,-451,-451,-449,-445,-433,-418,-410,-395,-372]} 1. e4 {[%emt 0:00:00]} e6 {[%emt 0:00:00]} 2. d4 {[%emt 0:00:00]} d5 {[%emt 0:00:00]} 3. Nd2 {[%emt 0:00:00]} c5 {[%emt 0:00:00]} 4. exd5 {[%emt 0:00:00]} Qxd5 {[%emt 0:00:00]} 5. Ngf3 {[%emt 0:00:00]} cxd4 {[%emt 0:00:00]} 6. Bc4 {[%emt 0:00:00]} Qd7 {[%emt 0:00:00] C07: French Tarrasch: 3...c5, 4 Ngf3 and 4 exd5 Qxd5.} 7. O-O {[%emt 0:00:00]} Nf6 {[%emt 0:00:00]} 8. Nb3 {[%emt 0:00:00]} Nc6 {[%emt 0:00:00] White is slightly better.} 9. Nbxd4 {[%emt 0:00:00]} Nxd4 {[%emt 0:00:00]} 10. Nxd4 {[%emt 0:00:00]} a6 {[%emt 0:00:00] Against Bb5} 11. a4 {[%emt 0:00:00] Inhibits b5.} Bc5 {[%emt 0:00:00]} 12. Be3 {[%emt 0:03:17]} O-O {[%emt 0:00:00]} 13. c3 {[%emt 0:02:10][%cal Bc2c3,Bc3c4][%mdl 32] [#]} b6 $146 {[%emt 0:12:05]} ({Predecessor:} 13... Qc7 14. Bb3 b6 15. Qe2 Bb7 16. Bc2 Rfd8 17. Rad1 Rd5 18. Nf3 Rh5 19. h3 Ng4 {0-1 (39) Maslikova,V (2222)-Paulauskaite,G (2053) Istanbul 2012}) 14. Qe2 {[%emt 0:06:29]} Bb7 {[%emt 0:05:59]} 15. Rfd1 {[%emt 0:11:18][%cal Od4e6]} Qc7 {[%emt 0:02:36]} 16. h3 {[%emt 0:10:03]} Nd5 {[%emt 0:14:10]} 17. Bxd5 {[%emt 0:08:03]} Bxd5 {[%emt 0:01:50]} 18. c4 {[%emt 0:05:13]} Bb7 {[%emt 0:02:52]} 19. Rab1 {[%emt 0:13:40]} Rac8 {[%emt 0:29:31]} 20. b4 {[%emt 0:03:10]} Be7 {[%emt 0:04:41]} 21. Rdc1 {[%emt 0:01:34]} Rfd8 {[%emt 0:06:36]} (21... Be4 $5 {[%cal Re4b1]} 22. Rb3 Rfd8 $15) 22. c5 {[%emt 0:04:14]} bxc5 {[%emt 0:01:47]} 23. bxc5 {[%emt 0:00:14] Strongly threatening c6.} Be4 {[%emt 0:03:42]} (23... Bxc5 $2 24. Nb3 $18) 24. Rb2 {[%emt 0:05:40]} (24. Rb4 $11 Bb7 25. a5) 24... Qe5 $1 $17 {[%emt 0:00:31]} ({Don't take} 24... Bxc5 25. Nxe6 $1 fxe6 26. Rxc5 $16) 25. Qxa6 {[%emt 0:05:06]} Rxc5 {[%emt 0:00:38]} 26. Rxc5 {[%emt 0:02:31]} Bxc5 {[%emt 0:00:15]} 27. Rd2 {[%emt 0:03:28]} h6 {[%emt 0:01:13] Black is more active.} (27... Bb4 $17 28. Rb2 Rxd4 29. Bxd4 Qxd4 30. Qc8+ Bf8) 28. Qa5 {[%emt 0:01:25][%mdl 8192]} (28. Nf3 $11 Qa1+ 29. Kh2 Rxd2 30. Nxd2 Qe5+ 31. Kh1 Bxe3 32. fxe3) 28... Rc8 $2 {[%emt 0:00:31]} ({Much less strong is} 28... Rxd4 29. Bxd4 Qg5 30. g4 $18) ({Better is} 28... Rb8 $19 {( -> ...Rb1+)} 29. f4 Qd6) 29. Nb3 $15 {[%emt 0:00:53][%cal Rb3c5]} Bd6 $40 {[%emt 0:00:16][%cal Oe5a1][%mdl 128] Black mounts an attack. A strong pair of Bishops.} 30. Qa6 $2 {[%emt 0:00:43][%mdl 8192]} (30. Qxe5 $15 Bxe5 31. Nc5) 30... Qh2+ $19 {[%emt 0:00:40]} 31. Kf1 {[%emt 0:00:07]} Qxg2+ {[%emt 0:00:17]} 32. Ke1 {[%emt 0:00:45]} Qh1+ {[%emt 0:00:00]} 33. Ke2 {[%emt 0:00:30]} Qf3+ {[%emt 0:00:01]} (33... Bf3+ $142 34. Kd3 Qf1+ 35. Re2 Qxe2+ 36. Kd4 e5#) 34. Ke1 {[%emt 0:00:13] [#]} Qh1+ $2 {[%emt 0:01:20]} (34... Bb7 $1 $19 35. Qe2 Bb4 36. Qxf3 Bxf3) 35. Qf1 {[%emt 0:00:09][%mdl 8192]} (35. Ke2 $11 Bf3+ 36. Kd3 Qb1+ 37. Rc2 Qxc2+ 38. Kd4 e5#) 35... Bb4 {[%emt 0:00:37] White must now prevent ...Qf3.} 36. Qxh1 {[%emt 0:00:12]} Bxh1 {[%emt 0:00:01][%cal Be4h1,Bh1d5,Bd5c4][%mdl 32]} 37. Ke2 {[%emt 0:00:23]} Bxd2 {[%emt 0:00:16]} 38. Bxd2 {[%emt 0:00:59]} Bd5 {[%emt 0:01:08]} 39. Nc1 {[%emt 0:00:42]} Bc4+ {[%emt 0:00:12]} 40. Ke3 {[%emt 0:00:35]} Kf8 {[%emt 0:00:35]} 41. a5 {[%emt 0:15:52]} Ke8 {[%emt 0:00:00]} 42. Kd4 {Weighted Error Value: White=0.69/Black=0.62} 0-1

[Event "GER-ch Youth-ODJM 2022"]
[Site "Willingen"]
[Date "2022.06.06"]
[Round "3.16"]
[White "Kracht, Raphael"]
[Black "Garbuz, Nicole"]
[Result "1-0"]
[ECO "C68"]
[WhiteElo "2086"]
[BlackElo "1824"]
[Annotator "TA"]
[PlyCount "92"]
[EventDate "2022.06.05"]
[EventType "swiss"]
[EventRounds "9"]
[EventCountry "GER"]
[SourceTitle "playchess.com"]
[Source "ChessBase"]
[SourceQuality "1"]
[TimeControl "40/4500+30:900+30"]

{[%evp 22,92,16,19,16,16,16,22,13,21,8,20,18,14,14,13,22,18,26,16,29,22,33,30,29,0,40,30,41,32,28,32,29,0,33,10,82,53,53,53,53,47,65,54,108,87,111,8,3,7,159,135,207,215,212,202,154,71,379,371,352,353,372,333,271,0,358,135,5018,1568,5114,5110,579]} 1. e4 {[%emt 0:00:00]} e5 {[%emt 0:00:00]} 2. Nf3 {[%emt 0:00:00]} Nc6 {[%emt 0:00:00]} 3. Bb5 {[%emt 0:00:00]} a6 {[%emt 0:00:00]} 4. Bxc6 {[%emt 0:00:00]} dxc6 {[%emt 0:00:00]} 5. O-O {[%emt 0:00:00]} f6 {[%emt 0:00:00]} 6. d4 {[%emt 0:00:00]} exd4 {[%emt 0:00:00]} 7. Nxd4 {[%emt 0:00:00]} c5 {[%emt 0:00:00]} 8. Nb3 {[%emt 0:00:00]} Qxd1 {[%emt 0:00:00]} 9. Rxd1 {[%emt 0:00:00]} Bg4 {[%emt 0:00:00]} 10. f3 {[%emt 0:00:00]} Bd7 {[%emt 0:00:00]} 11. Bf4 {[%emt 0:00:00]} O-O-O {[%emt 0:00:14]} 12. Nc3 {[%emt 0:00:00]} Be6 {[%emt 0:06:21] C69: Ruy Lopez: Exchange Variation with 5 0-0 f6.} 13. Rxd8+ {[%emt 0:00:00]} Kxd8 {[%emt 0:00:06]} 14. Rd1+ {[%emt 0:00:00]} Kc8 {[%emt 0:00:13] The position is equal.} 15. Nd5 {[%emt 0:00:00]} Bxd5 {[%emt 0:03:27]} 16. Rxd5 {[%emt 0:00:00]} b6 {[%emt 0:03:03]} 17. Rd1 {[%emt 0:00:00]} Ne7 {[%emt 0:01:34]} 18. Kf2 {[%emt 0:00:00] [#]} Nc6 $146 {[%emt 0:07:59]} ({Predecessor:} 18... Ng6 19. Bg3 Be7 20. Nc1 Rf8 21. Rd5 Bd8 22. Ne2 Ne7 23. Rd1 Ng6 24. Nf4 Nxf4 25. Bxf4 {½-½ (39) Lipnowski,S (2288)-Gentes,K (2329) Winnipeg 2004}) 19. c3 {[%emt 0:30:37]} Be7 {[%emt 0:07:25]} 20. Nd2 {[%emt 0:01:34]} Rd8 {[%emt 0:03:29]} 21. Ke2 {[%emt 0:00:22]} Bd6 {[%emt 0:12:30]} 22. Bxd6 {[%emt 0:00:56]} Rxd6 $14 {[%emt 0:06:57][%mdl 4096] Endgame KRN-KRN} 23. Nc4 {[%emt 0:02:27]} Re6 {[%emt 0:17:07]} 24. Ne3 {[%emt 0:00:20]} Ne7 {[%emt 0:02:02]} 25. Kf2 {[%emt 0:00:37]} Rd6 {[%emt 0:05:06]} 26. f4 {[%emt 0:01:00]} Kd7 {[%emt 0:01:50]} 27. Kf3 {[%emt 0:00:08]} b5 {[%emt 0:02:36]} 28. h4 {[%emt 0:02:39]} b4 {[%emt 0:02:27]} (28... Rxd1 $11 {remains equal.} 29. Nxd1 c4) 29. Rxd6+ {[%emt 0:02:50]} cxd6 {[%emt 0:01:36]} 30. cxb4 {[%emt 0:04:55]} cxb4 $16 {[%emt 0:00:04] KN-KN} 31. g4 {[%emt 0:12:55]} Nc6 {[%emt 0:00:30]} 32. Nd5 {[%emt 0:00:56]} a5 {[%emt 0:01:19]} (32... b3 $14 33. axb3 Nd4+ 34. Ke3 Nxb3) 33. Ke3 {[%emt 0:00:23]} Ke6 {[%emt 0:01:54][%cal Og7g5]} 34. Nc7+ {[%emt 0:04:21]} (34. h5 $16) 34... Kd7 $1 $11 {[%emt 0:00:23]} 35. Nb5 {[%emt 0:00:09]} g6 $2 {[%emt 0:00:43]} (35... g5 $1 $11) 36. Nd4 $16 {[%emt 0:00:22]} Ne7 {[%emt 0:00:52] [#]} (36... Nd8 $16) 37. g5 $1 $18 {[%emt 0:02:36]} fxg5 {[%emt 0:00:52]} 38. hxg5 {[%emt 0:00:06]} d5 {[%emt 0:00:39]} 39. f5 {[%emt 0:00:20]} (39. Nb3 $142) 39... gxf5 $2 {[%emt 0:00:54][%mdl 8192]} (39... dxe4 $16 40. f6 Nf5+ 41. Kxe4 Nxd4 42. Kxd4 Kd6) 40. exf5 {[%emt 0:00:07]} Kd6 {[%emt 0:00:39] [#]} 41. Kf4 {[%emt 0:16:15]} a4 {[%emt 0:00:00]} 42. Ne6 {[%emt 0:00:00] And now Nf8 would win.} Ng8 {[%emt 0:03:33]} 43. Nd4 {[%emt 0:00:00] Threatens to win with f6.} Ne7 $1 {[%emt 0:01:14]} 44. Nf3 $2 {[%emt 0:00:00]} (44. b3 $18 {is the precise move to win.}) 44... Kc5 $2 {[%emt 0:06:25][%mdl 8192]} (44... Nc6 $16 45. b3 axb3 46. axb3 Ke7) 45. g6 {[%emt 0:00:00]} Nxg6+ {[%emt 0:01:23]} 46. fxg6 {[%emt 0:00:00]} hxg6 {[%emt 0:00:03] Weighted Error Value: White=0.30/Black=0.32} 1-0